[Event "Early-Titled-Tuesday-Blitz-April-23-2024"]
[Site "Chess.com"]
[Date "2024.04.23"]
[Round "8"]
[White "RamonManon0g"]
[Black "tetrix83"]
[Result "0-1"]
[WhiteElo "2463"]
[BlackElo "2644"]
[TimeControl "180+1"]
[EndTime "9:29:51 PDT"]
[Termination "tetrix83 won by resignation"]

1. e4 {[%clk 0:02:52.5]} 1... c5 {[%clk 0:02:59.8]} 2. Nf3 {[%clk 0:02:49.8]}
2... d6 {[%clk 0:02:58.9]} 3. d4 {[%clk 0:02:49.8]} 3... cxd4 {[%clk 0:02:59.8]}
4. Nxd4 {[%clk 0:02:50.3]} 4... Nf6 {[%clk 0:02:59.3]} 5. Nc3 {[%clk 0:02:50.5]}
5... a6 {[%clk 0:02:59.5]} 6. f3 {[%clk 0:02:49.5]} 6... e6 {[%clk 0:02:58.4]}
7. Be3 {[%clk 0:02:48.8]} 7... b5 {[%clk 0:02:57.2]} 8. Qd2 {[%clk 0:02:46.7]}
8... Nbd7 {[%clk 0:02:35.6]} 9. O-O-O {[%clk 0:02:27.3]} 9... Nb6 {[%clk
0:02:34.1]} 10. Kb1 {[%clk 0:01:53.8]} 10... Bb7 {[%clk 0:02:18.8]} 11. g4
{[%clk 0:01:24.8]} 11... Nfd7 {[%clk 0:02:15.3]} 12. h4 {[%clk 0:01:20.8]} 12...
Ne5 {[%clk 0:02:14.7]} 13. Qf2 {[%clk 0:01:14]} 13... Nec4 {[%clk 0:01:55.1]}
14. Bc1 {[%clk 0:01:08.3]} 14... b4 {[%clk 0:01:54.7]} 15. Na4 {[%clk
0:01:06.1]} 15... Na3+ {[%clk 0:01:51.4]} 16. bxa3 {[%clk 0:01:03.4]} 16... Nxa4
{[%clk 0:01:51.6]} 17. axb4 {[%clk 0:01:03.5]} 17... Nc3+ {[%clk 0:01:51.2]} 18.
Ka1 {[%clk 0:01:00.3]} 18... Nxd1 {[%clk 0:01:47.8]} 19. Qe1 {[%clk 0:01:00.1]}
19... d5 {[%clk 0:01:37.8]} 20. e5 {[%clk 0:00:58.9]} 20... Qb6 {[%clk
0:01:31.3]} 21. Qxd1 {[%clk 0:00:58.9]} 21... Bxb4 {[%clk 0:01:30.1]} 22. Bb2
{[%clk 0:00:58.1]} 22... O-O {[%clk 0:01:26.5]} 23. h5 {[%clk 0:00:57.3]} 23...
Rfc8 {[%clk 0:01:24.4]} 24. h6 {[%clk 0:00:57.7]} 24... g6 {[%clk 0:01:24.5]}
25. c4 {[%clk 0:00:53.6]} 25... dxc4 {[%clk 0:01:21.4]} 26. Qc1 {[%clk
0:00:53.4]} 26... c3 {[%clk 0:01:19.2]} 27. Ba3 {[%clk 0:00:52.9]} 27... Qxd4
{[%clk 0:01:13]} 0-1

[Event "Early-Titled-Tuesday-Blitz-April-23-2024"]
[Site "Chess.com"]
[Date "2024.04.23"]
[Round "8"]
[White "Rud_Makarian"]
[Black "Nimrod_Veinberg"]
[Result "1-0"]
[WhiteElo "3031"]
[BlackElo "2796"]
[TimeControl "180+1"]
[EndTime "9:29:58 PDT"]
[Termination "Rud_Makarian won by resignation"]

1. d4 {[%clk 0:03:00.2]} 1... d5 {[%clk 0:02:58.1]} 2. c4 {[%clk 0:03:00.3]}
2... dxc4 {[%clk 0:02:58.7]} 3. Nf3 {[%clk 0:03:00.3]} 3... Nf6 {[%clk
0:02:58.5]} 4. e3 {[%clk 0:03:00.6]} 4... e6 {[%clk 0:02:55.8]} 5. Bxc4 {[%clk
0:03:00.4]} 5... a6 {[%clk 0:02:56.4]} 6. O-O {[%clk 0:03:00.2]} 6... b5 {[%clk
0:02:55.6]} 7. Bd3 {[%clk 0:03:00.1]} 7... Bb7 {[%clk 0:02:35.7]} 8. a4 {[%clk
0:02:58.8]} 8... b4 {[%clk 0:02:36.1]} 9. Qe2 {[%clk 0:02:55.8]} 9... c5 {[%clk
0:02:35.4]} 10. Nbd2 {[%clk 0:02:50.5]} 10... cxd4 {[%clk 0:02:32.2]} 11. exd4
{[%clk 0:02:49.4]} 11... Be7 {[%clk 0:02:29.8]} 12. Nc4 {[%clk 0:02:41.2]} 12...
O-O {[%clk 0:02:29.1]} 13. Bg5 {[%clk 0:02:39.3]} 13... Nc6 {[%clk 0:02:25.2]}
14. Rad1 {[%clk 0:02:37.4]} 14... h6 {[%clk 0:02:15.5]} 15. Bc1 {[%clk
0:02:13.1]} 15... Na5 {[%clk 0:01:58]} 16. Nce5 {[%clk 0:02:03.2]} 16... Nb3
{[%clk 0:01:51.3]} 17. Be3 {[%clk 0:01:59.1]} 17... Na5 {[%clk 0:01:07.2]} 18.
Bb1 {[%clk 0:01:46]} 18... Qd5 {[%clk 0:00:55.2]} 19. Rfe1 {[%clk 0:01:31]}
19... Rfd8 {[%clk 0:00:48]} 20. Qd3 {[%clk 0:01:20.2]} 20... Qb3 {[%clk
0:00:43.9]} 21. Qd2 {[%clk 0:01:12]} 21... Qd5 {[%clk 0:00:42.5]} 22. Bxh6
{[%clk 0:01:09.3]} 22... gxh6 {[%clk 0:00:38.9]} 23. Qxh6 {[%clk 0:01:10.1]}
23... Bf8 {[%clk 0:00:39.5]} 24. Qxf6 {[%clk 0:01:08.8]} 1-0

[Event "Early-Titled-Tuesday-Blitz-April-23-2024"]
[Site "Chess.com"]
[Date "2024.04.23"]
[Round "8"]
[White "wqws"]
[Black "AsaHoffmann"]
[Result "1-0"]
[WhiteElo "2693"]
[BlackElo "2393"]
[TimeControl "180+1"]
[EndTime "9:30:01 PDT"]
[Termination "wqws won by resignation"]

1. e4 {[%clk 0:02:59.9]} 1... d6 {[%clk 0:02:55.3]} 2. d4 {[%clk 0:02:59.9]}
2... Nf6 {[%clk 0:02:55]} 3. Nc3 {[%clk 0:03:00.4]} 3... c6 {[%clk 0:02:55.2]}
4. Nf3 {[%clk 0:02:58.5]} 4... Bg4 {[%clk 0:02:54.5]} 5. h3 {[%clk 0:02:57.9]}
5... Bh5 {[%clk 0:02:53.7]} 6. g4 {[%clk 0:02:57.3]} 6... Bg6 {[%clk 0:02:53.6]}
7. Bd3 {[%clk 0:02:57.6]} 7... e6 {[%clk 0:02:53.6]} 8. Nh4 {[%clk 0:02:57.8]}
8... d5 {[%clk 0:02:53.1]} 9. Nxg6 {[%clk 0:02:57.7]} 9... hxg6 {[%clk
0:02:52.7]} 10. e5 {[%clk 0:02:53.2]} 10... Nfd7 {[%clk 0:02:52.5]} 11. Ne2
{[%clk 0:02:50.3]} 11... c5 {[%clk 0:02:49.7]} 12. c3 {[%clk 0:02:50.2]} 12...
Nc6 {[%clk 0:02:49.8]} 13. Kf1 {[%clk 0:02:48.9]} 13... Qb6 {[%clk 0:02:49.3]}
14. Bc2 {[%clk 0:02:46]} 14... O-O-O {[%clk 0:02:43.2]} 15. Kg2 {[%clk
0:02:45.9]} 15... f6 {[%clk 0:02:42.9]} 16. Nf4 {[%clk 0:02:44.8]} 16... fxe5
{[%clk 0:02:38.9]} 17. Nxg6 {[%clk 0:02:41.6]} 17... Rg8 {[%clk 0:02:26.7]} 18.
dxe5 {[%clk 0:02:39.5]} 18... Ndxe5 {[%clk 0:02:25.6]} 19. Nxe5 {[%clk
0:02:38.6]} 19... Nxe5 {[%clk 0:02:25.4]} 20. Qe2 {[%clk 0:02:39.5]} 20... Nd7
{[%clk 0:02:16.1]} 21. Bf4 {[%clk 0:02:31.2]} 21... Re8 {[%clk 0:02:11.9]} 22.
Bg6 {[%clk 0:02:28.9]} 22... Bd6 {[%clk 0:02:07.4]} 23. Bxe8 {[%clk 0:02:27.9]}
23... Rxe8 {[%clk 0:02:06.4]} 24. Bxd6 {[%clk 0:02:24.6]} 24... Qxd6 {[%clk
0:02:06.2]} 25. Rae1 {[%clk 0:02:24.8]} 25... e5 {[%clk 0:02:05.9]} 26. g5
{[%clk 0:02:18.2]} 26... e4 {[%clk 0:02:04.8]} 27. h4 {[%clk 0:02:18.6]} 27...
Ne5 {[%clk 0:02:04]} 28. Rh3 {[%clk 0:02:18.4]} 28... Nf3 {[%clk 0:01:59.9]} 29.
Rd1 {[%clk 0:02:02.6]} 29... Qe6 {[%clk 0:01:53.2]} 30. Rxf3 {[%clk 0:01:54.6]}
30... exf3+ {[%clk 0:01:52.6]} 31. Qxf3 {[%clk 0:01:54.3]} 31... Rd8 {[%clk
0:01:39.6]} 32. Qh3 {[%clk 0:01:51.1]} 32... Qxh3+ {[%clk 0:01:34.9]} 33. Kxh3
{[%clk 0:01:51.9]} 33... g6 {[%clk 0:01:34.7]} 34. f4 {[%clk 0:01:51.6]} 34...
d4 {[%clk 0:01:34.4]} 35. Kg4 {[%clk 0:01:49.1]} 35... d3 {[%clk 0:01:32.9]} 36.
h5 {[%clk 0:01:46.9]} 36... gxh5+ {[%clk 0:01:32.2]} 37. Kxh5 {[%clk 0:01:47.8]}
37... d2 {[%clk 0:01:30.8]} 38. f5 {[%clk 0:01:46.1]} 38... Rh8+ {[%clk
0:01:16.9]} 39. Kg6 {[%clk 0:01:46.1]} 39... Rh2 {[%clk 0:01:16]} 40. Kf7 {[%clk
0:01:39.2]} 40... Kd7 {[%clk 0:01:09.9]} 41. g6 {[%clk 0:01:39.1]} 41... Rg2
{[%clk 0:01:07.3]} 42. g7 {[%clk 0:01:38.4]} 42... Kd6 {[%clk 0:01:06.2]} 43.
g8=Q {[%clk 0:01:37.9]} 1-0

[Event "Early-Titled-Tuesday-Blitz-April-23-2024"]
[Site "Chess.com"]
[Date "2024.04.23"]
[Round "8"]
[White "rionelG"]
[Black "carloseduar100"]
[Result "1-0"]
[WhiteElo "2216"]
[BlackElo "2204"]
[TimeControl "180+1"]
[EndTime "9:30:03 PDT"]
[Termination "rionelG won on time"]

1. e4 {[%clk 0:03:00.9]} 1... e6 {[%clk 0:02:59.6]} 2. d3 {[%clk 0:03:00.1]}
2... d5 {[%clk 0:02:59.8]} 3. Nd2 {[%clk 0:03:01]} 3... Nf6 {[%clk 0:03:00]} 4.
g3 {[%clk 0:03:01.1]} 4... c5 {[%clk 0:03:00.1]} 5. Bg2 {[%clk 0:03:01.4]} 5...
Nc6 {[%clk 0:02:59.8]} 6. Ngf3 {[%clk 0:03:01.6]} 6... Be7 {[%clk 0:02:56.4]} 7.
O-O {[%clk 0:03:01.6]} 7... b5 {[%clk 0:02:56.5]} 8. Re1 {[%clk 0:03:01.6]} 8...
a5 {[%clk 0:02:56.3]} 9. e5 {[%clk 0:03:00.4]} 9... Nd7 {[%clk 0:02:55.5]} 10.
Nf1 {[%clk 0:02:55.8]} 10... a4 {[%clk 0:02:55]} 11. a3 {[%clk 0:02:54.7]} 11...
b4 {[%clk 0:02:49.7]} 12. h4 {[%clk 0:02:36.1]} 12... Bb7 {[%clk 0:02:48.4]} 13.
N1h2 {[%clk 0:02:15.4]} 13... Qb6 {[%clk 0:02:46.5]} 14. Bf4 {[%clk 0:02:12.9]}
14... h6 {[%clk 0:02:40.5]} 15. Qd2 {[%clk 0:02:11.6]} 15... bxa3 {[%clk
0:02:31.4]} 16. bxa3 {[%clk 0:02:11]} 16... Nd4 {[%clk 0:02:29.2]} 17. Rab1
{[%clk 0:02:05]} 17... Qc7 {[%clk 0:00:54.5]} 18. c4 {[%clk 0:01:58.7]} 18...
dxc4 {[%clk 0:00:07.1]} 19. Rxb7 {[%clk 0:01:49.2]} 19... Qxb7 {[%clk
0:00:06.8]} 20. Nxd4 {[%clk 0:01:48.3]} 20... Qa7 {[%clk 0:00:02.9]} 21. Nb5
{[%clk 0:01:46]} 1-0

[Event "Early-Titled-Tuesday-Blitz-April-23-2024"]
[Site "Chess.com"]
[Date "2024.04.23"]
[Round "8"]
[White "rhwr"]
[Black "Dewarfd"]
[Result "1-0"]
[WhiteElo "2289"]
[BlackElo "2094"]
[TimeControl "180+1"]
[EndTime "9:30:06 PDT"]
[Termination "rhwr won by resignation"]

1. e4 {[%clk 0:03:00.9]} 1... c5 {[%clk 0:02:56.3]} 2. Nf3 {[%clk 0:03:00.2]}
2... g6 {[%clk 0:02:56]} 3. d4 {[%clk 0:03:00.7]} 3... cxd4 {[%clk 0:02:56.1]}
4. Nxd4 {[%clk 0:03:01.3]} 4... Nc6 {[%clk 0:02:55.7]} 5. c4 {[%clk 0:02:58.4]}
5... Nf6 {[%clk 0:02:52.7]} 6. Nc3 {[%clk 0:02:56.9]} 6... d6 {[%clk 0:02:47.4]}
7. Be2 {[%clk 0:02:53.7]} 7... Nxd4 {[%clk 0:02:46.9]} 8. Qxd4 {[%clk 0:02:53]}
8... Bg7 {[%clk 0:02:47.6]} 9. O-O {[%clk 0:02:47.8]} 9... O-O {[%clk
0:02:47.7]} 10. Qd1 {[%clk 0:02:41]} 10... a5 {[%clk 0:02:44.1]} 11. Be3 {[%clk
0:02:38.1]} 11... a4 {[%clk 0:02:34.3]} 12. Rb1 {[%clk 0:02:31.8]} 12... Be6
{[%clk 0:02:08.2]} 13. f3 {[%clk 0:02:26.3]} 13... Qa5 {[%clk 0:02:03.1]} 14.
Nd5 {[%clk 0:02:17.2]} 14... Nxd5 {[%clk 0:01:55.9]} 15. cxd5 {[%clk 0:02:17.4]}
15... Bd7 {[%clk 0:01:50.1]} 16. Bd4 {[%clk 0:02:17.2]} 16... Bxd4+ {[%clk
0:01:24.1]} 17. Qxd4 {[%clk 0:02:17]} 17... Rfc8 {[%clk 0:01:24]} 18. Rfc1
{[%clk 0:02:15.2]} 18... a3 {[%clk 0:01:19.6]} 19. bxa3 {[%clk 0:01:58.7]} 19...
Qxa3 {[%clk 0:01:08.9]} 20. Rxc8+ {[%clk 0:01:56.5]} 20... Rxc8 {[%clk
0:01:08.5]} 21. Rxb7 {[%clk 0:01:50]} 21... Rc1+ {[%clk 0:00:51.5]} 22. Kf2
{[%clk 0:01:47.9]} 22... Bc8 {[%clk 0:00:45]} 23. Ra7 {[%clk 0:01:41.8]} 23...
Qc5 {[%clk 0:00:10.4]} 24. Qxc5 {[%clk 0:01:39]} 24... dxc5 {[%clk 0:00:10.5]}
25. Ra8 {[%clk 0:01:38.5]} 1-0

[Event "Early-Titled-Tuesday-Blitz-April-23-2024"]
[Site "Chess.com"]
[Date "2024.04.23"]
[Round "8"]
[White "NMChessToImpress"]
[Black "GrotBchess"]
[Result "0-1"]
[WhiteElo "2222"]
[BlackElo "2442"]
[TimeControl "180+1"]
[EndTime "9:30:17 PDT"]
[Termination "GrotBchess won by resignation"]

1. e4 {[%clk 0:03:00.9]} 1... e5 {[%clk 0:02:59.6]} 2. Nf3 {[%clk 0:03:00.6]}
2... Nc6 {[%clk 0:02:59.7]} 3. Bb5 {[%clk 0:03:00.6]} 3... Nf6 {[%clk
0:02:57.7]} 4. d3 {[%clk 0:03:00]} 4... Bc5 {[%clk 0:02:52.9]} 5. Bxc6 {[%clk
0:02:59.4]} 5... dxc6 {[%clk 0:02:53.8]} 6. Nbd2 {[%clk 0:02:59.9]} 6... Qe7
{[%clk 0:02:52.4]} 7. O-O {[%clk 0:02:50.4]} 7... h6 {[%clk 0:02:47.7]} 8. Nc4
{[%clk 0:02:50.1]} 8... Bd6 {[%clk 0:02:46.4]} 9. a4 {[%clk 0:02:49.1]} 9... O-O
{[%clk 0:02:45.3]} 10. Nfd2 {[%clk 0:02:18.3]} 10... Be6 {[%clk 0:02:42.8]} 11.
f4 {[%clk 0:02:01.8]} 11... exf4 {[%clk 0:02:38.6]} 12. e5 {[%clk 0:02:01.1]}
12... Bc5+ {[%clk 0:02:37.4]} 13. Kh1 {[%clk 0:01:57.6]} 13... Ng4 {[%clk
0:02:36.9]} 14. Ne4 {[%clk 0:01:46.3]} 14... Qh4 {[%clk 0:02:26]} 15. h3 {[%clk
0:01:40.6]} 15... Nf2+ {[%clk 0:02:20.1]} 16. Nxf2 {[%clk 0:01:21.7]} 16... Bxf2
{[%clk 0:02:20.5]} 17. Qf3 {[%clk 0:01:08.5]} 17... Bxc4 {[%clk 0:02:12.2]} 18.
Qxf2 {[%clk 0:00:57.8]} 18... Qxf2 {[%clk 0:02:10.3]} 19. Rxf2 {[%clk
0:00:57.9]} 19... Be6 {[%clk 0:02:05.6]} 20. Bxf4 {[%clk 0:00:55.6]} 20... Rfd8
{[%clk 0:02:04.6]} 21. Be3 {[%clk 0:00:47.6]} 21... a6 {[%clk 0:02:03.8]} 22.
Rf4 {[%clk 0:00:28.4]} 22... Rd5 {[%clk 0:02:02.9]} 23. Rb4 {[%clk 0:00:21]}
23... Rxe5 {[%clk 0:01:58.7]} 24. Bf4 {[%clk 0:00:20.1]} 24... Re2 {[%clk
0:01:53.5]} 25. Rxb7 {[%clk 0:00:19.3]} 25... Rxc2 {[%clk 0:01:52.6]} 26. Bxc7
{[%clk 0:00:17.2]} 26... Bd5 {[%clk 0:01:50.1]} 27. Rg1 {[%clk 0:00:15.6]} 27...
Re8 {[%clk 0:01:49.5]} 28. Ba5 {[%clk 0:00:13.8]} 28... Ree2 {[%clk 0:01:46.4]}
29. h4 {[%clk 0:00:07.9]} 29... Rxg2 {[%clk 0:01:44.5]} 30. Rxg2 {[%clk
0:00:07.4]} 30... Rxg2 {[%clk 0:01:45.1]} 31. Rb8+ {[%clk 0:00:06.5]} 31... Kh7
{[%clk 0:01:44]} 32. Bc3 {[%clk 0:00:06.5]} 32... Rxb2+ {[%clk 0:01:42.2]} 0-1

[Event "Early-Titled-Tuesday-Blitz-April-23-2024"]
[Site "Chess.com"]
[Date "2024.04.23"]
[Round "8"]
[White "yaguigor"]
[Black "BurningggIce"]
[Result "0-1"]
[WhiteElo "2578"]
[BlackElo "2450"]
[TimeControl "180+1"]
[EndTime "9:30:19 PDT"]
[Termination "BurningggIce won by checkmate"]

1. Nf3 {[%clk 0:03:00.9]} 1... d5 {[%clk 0:02:53.1]} 2. c4 {[%clk 0:02:59.9]}
2... d4 {[%clk 0:02:51.8]} 3. e3 {[%clk 0:02:59]} 3... c5 {[%clk 0:02:52]} 4.
exd4 {[%clk 0:02:58.9]} 4... cxd4 {[%clk 0:02:52.9]} 5. d3 {[%clk 0:02:59.3]}
5... Nc6 {[%clk 0:02:53.1]} 6. g3 {[%clk 0:02:59.9]} 6... g6 {[%clk 0:02:53.1]}
7. Bg2 {[%clk 0:03:00.5]} 7... Bg7 {[%clk 0:02:53.7]} 8. O-O {[%clk 0:03:01]}
8... Nf6 {[%clk 0:02:54.3]} 9. Na3 {[%clk 0:02:53.9]} 9... O-O {[%clk 0:02:54]}
10. Nc2 {[%clk 0:02:54]} 10... a5 {[%clk 0:02:54.6]} 11. Rb1 {[%clk 0:02:52.7]}
11... e5 {[%clk 0:02:54.7]} 12. Re1 {[%clk 0:02:51.2]} 12... Re8 {[%clk
0:02:50.8]} 13. Ng5 {[%clk 0:02:46.8]} 13... h6 {[%clk 0:02:45.5]} 14. Ne4
{[%clk 0:02:46.7]} 14... Nxe4 {[%clk 0:02:43.8]} 15. Bxe4 {[%clk 0:02:47.6]}
15... f5 {[%clk 0:02:41.7]} 16. Bd5+ {[%clk 0:02:46.7]} 16... Be6 {[%clk
0:02:42.3]} 17. Bg2 {[%clk 0:02:14.7]} 17... Qf6 {[%clk 0:02:25.2]} 18. a3
{[%clk 0:02:14.5]} 18... a4 {[%clk 0:02:23.5]} 19. b4 {[%clk 0:02:13.8]} 19...
axb3 {[%clk 0:02:12.1]} 20. Rxb3 {[%clk 0:02:14.7]} 20... Re7 {[%clk 0:02:06]}
21. Rb1 {[%clk 0:02:15.6]} 21... Rf7 {[%clk 0:02:03.8]} 22. Rb3 {[%clk
0:02:16.5]} 22... e4 {[%clk 0:02:00.5]} 23. Rb5 {[%clk 0:02:08.2]} 23... Ne5
{[%clk 0:01:54.9]} 24. dxe4 {[%clk 0:02:00]} 24... d3 {[%clk 0:01:29.3]} 25. Ne3
{[%clk 0:01:51.9]} 25... fxe4 {[%clk 0:01:29]} 26. Rf1 {[%clk 0:01:44.8]} 26...
Nxc4 {[%clk 0:01:14]} 27. Nxc4 {[%clk 0:01:43.5]} 27... Bxc4 {[%clk 0:01:13.7]}
28. Rb4 {[%clk 0:01:44.2]} 28... Qc6 {[%clk 0:01:10.4]} 29. Re1 {[%clk
0:01:23.9]} 29... Re8 {[%clk 0:00:56.3]} 30. Qg4 {[%clk 0:01:18.9]} 30... Bc3
{[%clk 0:00:52.4]} 31. Rxe4 {[%clk 0:01:18.1]} 31... Bxb4 {[%clk 0:00:46.5]} 32.
Rxc4 {[%clk 0:01:12.3]} 32... Re1+ {[%clk 0:00:44.6]} 33. Bf1 {[%clk 0:01:12.8]}
33... Rxf1+ {[%clk 0:00:44.7]} 34. Kxf1 {[%clk 0:01:11.9]} 34... Qh1# {[%clk
0:00:45.6]} 0-1

[Event "Early-Titled-Tuesday-Blitz-April-23-2024"]
[Site "Chess.com"]
[Date "2024.04.23"]
[Round "8"]
[White "kidagent"]
[Black "Alexei_Gubajdullin"]
[Result "0-1"]
[WhiteElo "2353"]
[BlackElo "2601"]
[TimeControl "180+1"]
[EndTime "9:30:19 PDT"]
[Termination "Alexei_Gubajdullin won by resignation"]

1. e4 {[%clk 0:03:00.9]} 1... g6 {[%clk 0:02:59.8]} 2. d4 {[%clk 0:02:57.8]}
2... Bg7 {[%clk 0:02:59.7]} 3. Nf3 {[%clk 0:02:58.5]} 3... d6 {[%clk 0:02:59.8]}
4. Bc4 {[%clk 0:02:57.7]} 4... e6 {[%clk 0:02:59.6]} 5. c3 {[%clk 0:02:55.5]}
5... Nf6 {[%clk 0:02:59.1]} 6. Qe2 {[%clk 0:02:52.8]} 6... Nc6 {[%clk 0:02:59]}
7. O-O {[%clk 0:02:51.6]} 7... O-O {[%clk 0:02:59.1]} 8. h3 {[%clk 0:02:47]}
8... h6 {[%clk 0:02:57.9]} 9. Bb3 {[%clk 0:02:37.6]} 9... b6 {[%clk 0:02:56.9]}
10. Bc2 {[%clk 0:02:37]} 10... Bb7 {[%clk 0:02:56.6]} 11. Re1 {[%clk 0:02:34.2]}
11... Re8 {[%clk 0:02:56]} 12. Nbd2 {[%clk 0:02:32.4]} 12... e5 {[%clk
0:02:55.1]} 13. Nf1 {[%clk 0:02:29.7]} 13... exd4 {[%clk 0:02:54.5]} 14. cxd4
{[%clk 0:02:29.3]} 14... Nb4 {[%clk 0:02:54.6]} 15. Ng3 {[%clk 0:02:20.1]} 15...
Nxe4 {[%clk 0:02:45.5]} 16. Bxe4 {[%clk 0:02:06.8]} 16... d5 {[%clk 0:02:45.1]}
17. Ne5 {[%clk 0:01:45.9]} 17... dxe4 {[%clk 0:02:42.8]} 18. Bf4 {[%clk
0:01:21.9]} 18... Qxd4 {[%clk 0:02:38.3]} 19. Red1 {[%clk 0:01:20]} 19... Nd3
{[%clk 0:02:38.1]} 20. Nxd3 {[%clk 0:00:39.4]} 20... exd3 {[%clk 0:02:37.7]} 21.
Qd2 {[%clk 0:00:39.7]} 21... Qxb2 {[%clk 0:02:21.1]} 22. Qxb2 {[%clk 0:00:36.8]}
22... Bxb2 {[%clk 0:02:20.4]} 23. Rab1 {[%clk 0:00:37.3]} 23... Bg7 {[%clk
0:02:14.3]} 24. Rxd3 {[%clk 0:00:36.7]} 24... c5 {[%clk 0:02:14]} 25. Rbd1
{[%clk 0:00:32.7]} 25... c4 {[%clk 0:02:13.3]} 26. Rd7 {[%clk 0:00:32.5]} 26...
Bc6 {[%clk 0:02:13.2]} 27. Rc7 {[%clk 0:00:32.3]} 27... Rec8 {[%clk 0:02:13.2]}
28. Rxc8+ {[%clk 0:00:26.5]} 28... Rxc8 {[%clk 0:02:12.8]} 29. Ne2 {[%clk
0:00:25.1]} 29... c3 {[%clk 0:02:12.5]} 30. Rc1 {[%clk 0:00:24.3]} 30... Be4
{[%clk 0:02:12.3]} 31. Kf1 {[%clk 0:00:16.3]} 31... c2 {[%clk 0:02:11.9]} 32.
Ke1 {[%clk 0:00:16.1]} 32... Bb2 {[%clk 0:02:12]} 33. Kd2 {[%clk 0:00:15.7]}
33... Rd8+ {[%clk 0:02:11.5]} 34. Ke3 {[%clk 0:00:15.1]} 34... Bxc1+ {[%clk
0:02:04.1]} 35. Nxc1 {[%clk 0:00:15]} 35... Bxg2 {[%clk 0:02:04.1]} 36. h4
{[%clk 0:00:14.4]} 36... Rd1 {[%clk 0:02:03.6]} 37. Ke2 {[%clk 0:00:14.7]} 37...
f6 {[%clk 0:02:03.7]} 38. Bd2 {[%clk 0:00:11.9]} 38... g5 {[%clk 0:02:03.2]} 39.
Kd3 {[%clk 0:00:11.9]} 39... gxh4 {[%clk 0:01:58.3]} 40. Kxc2 {[%clk 0:00:12]}
40... Rxd2+ {[%clk 0:01:56.5]} 41. Kxd2 {[%clk 0:00:11.8]} 41... h3 {[%clk
0:01:57.1]} 0-1

[Event "Early-Titled-Tuesday-Blitz-April-23-2024"]
[Site "Chess.com"]
[Date "2024.04.23"]
[Round "8"]
[White "Boxerandchessplayer"]
[Black "A4RookA3"]
[Result "1-0"]
[WhiteElo "2244"]
[BlackElo "2357"]
[TimeControl "180+1"]
[EndTime "9:30:33 PDT"]
[Termination "Boxerandchessplayer won on time"]

1. Nf3 {[%clk 0:03:00.9]} 1... g6 {[%clk 0:02:46.5]} 2. d4 {[%clk 0:02:57.1]}
2... Bg7 {[%clk 0:02:47.4]} 3. c4 {[%clk 0:02:57.8]} 3... Nf6 {[%clk 0:02:41.7]}
4. Nc3 {[%clk 0:02:57.4]} 4... d5 {[%clk 0:02:41.3]} 5. e3 {[%clk 0:02:52.9]}
5... O-O {[%clk 0:02:39.7]} 6. Qb3 {[%clk 0:02:52.3]} 6... dxc4 {[%clk
0:02:34.7]} 7. Bxc4 {[%clk 0:02:51.5]} 7... Nc6 {[%clk 0:02:33.9]} 8. Be2 {[%clk
0:02:08.8]} 8... Rb8 {[%clk 0:01:45.8]} 9. O-O {[%clk 0:01:45.1]} 9... Be6
{[%clk 0:01:31.7]} 10. Qa3 {[%clk 0:01:43.4]} 10... a6 {[%clk 0:01:18.2]} 11.
Rd1 {[%clk 0:01:41.5]} 11... Qd6 {[%clk 0:00:58]} 12. Qxd6 {[%clk 0:01:30.3]}
12... exd6 {[%clk 0:00:58.9]} 13. d5 {[%clk 0:01:29.1]} 13... Nxd5 {[%clk
0:00:54.9]} 14. Nxd5 {[%clk 0:01:29.5]} 14... Bxd5 {[%clk 0:00:55.8]} 15. Rxd5
{[%clk 0:01:29.4]} 15... Nb4 {[%clk 0:00:40.3]} 16. Rd1 {[%clk 0:01:29]} 16...
a5 {[%clk 0:00:25]} 17. a3 {[%clk 0:01:26.8]} 17... Nc6 {[%clk 0:00:20.1]} 18.
Rb1 {[%clk 0:01:26.4]} 18... Rfe8 {[%clk 0:00:15.3]} 19. b4 {[%clk 0:01:25.2]}
19... b6 {[%clk 0:00:08]} 20. Bb2 {[%clk 0:01:19.6]} 20... Bxb2 {[%clk
0:00:04.4]} 21. Rxb2 {[%clk 0:01:20.5]} 21... Ne5 {[%clk 0:00:04.7]} 22. b5
{[%clk 0:01:13.2]} 22... Rbd8 {[%clk 0:00:03.3]} 23. Rc2 {[%clk 0:01:12.8]} 1-0

[Event "Early-Titled-Tuesday-Blitz-April-23-2024"]
[Site "Chess.com"]
[Date "2024.04.23"]
[Round "8"]
[White "DominguezOnYoutube"]
[Black "FairChess_on_YouTube"]
[Result "1-0"]
[WhiteElo "2963"]
[BlackElo "3086"]
[TimeControl "180+1"]
[EndTime "9:30:35 PDT"]
[Termination "DominguezOnYoutube won by resignation"]

1. e4 {[%clk 0:03:00.9]} 1... e5 {[%clk 0:03:00.3]} 2. Nf3 {[%clk 0:03:00.9]}
2... Nc6 {[%clk 0:03:01]} 3. Bb5 {[%clk 0:03:00.8]} 3... f5 {[%clk 0:03:00.5]}
4. d3 {[%clk 0:02:58.7]} 4... fxe4 {[%clk 0:02:59.5]} 5. dxe4 {[%clk 0:02:59.1]}
5... Nf6 {[%clk 0:03:00.1]} 6. O-O {[%clk 0:02:59.1]} 6... Bc5 {[%clk
0:03:00.2]} 7. Qd3 {[%clk 0:02:54.8]} 7... d6 {[%clk 0:02:58.9]} 8. Bc4 {[%clk
0:02:49.7]} 8... Qe7 {[%clk 0:02:54.6]} 9. Nc3 {[%clk 0:02:41.6]} 9... Bg4
{[%clk 0:02:54.3]} 10. h3 {[%clk 0:02:40.7]} 10... Bxf3 {[%clk 0:02:50.8]} 11.
Qxf3 {[%clk 0:02:40.2]} 11... O-O-O {[%clk 0:02:51.1]} 12. Bg5 {[%clk
0:02:26.7]} 12... Rdf8 {[%clk 0:02:48.3]} 13. Qd3 {[%clk 0:02:18.3]} 13... h6
{[%clk 0:02:39.7]} 14. Nd5 {[%clk 0:02:17.2]} 14... hxg5 {[%clk 0:02:37.7]} 15.
Nxe7+ {[%clk 0:02:16.5]} 15... Nxe7 {[%clk 0:02:38.6]} 16. Be6+ {[%clk
0:02:15.7]} 16... Kb8 {[%clk 0:02:38.4]} 17. b4 {[%clk 0:02:05]} 17... Bb6
{[%clk 0:02:34.2]} 18. a4 {[%clk 0:02:00.2]} 18... Ng6 {[%clk 0:02:22.8]} 19. g3
{[%clk 0:01:58.5]} 19... Nh5 {[%clk 0:01:54.8]} 20. a5 {[%clk 0:01:49]} 20...
Bd4 {[%clk 0:01:54.6]} 21. c3 {[%clk 0:01:17.3]} 21... Nhf4 {[%clk 0:01:53.9]}
22. gxf4 {[%clk 0:01:17.9]} 22... Nxf4 {[%clk 0:01:53.9]} 23. Qc4 {[%clk
0:01:18.4]} 23... Bxc3 {[%clk 0:01:09.3]} 24. Rac1 {[%clk 0:01:16.7]} 24... Nxe6
{[%clk 0:01:08.1]} 25. Qxe6 {[%clk 0:01:06.3]} 25... Bxb4 {[%clk 0:01:03.4]} 26.
a6 {[%clk 0:01:06.1]} 26... bxa6 {[%clk 0:01:02.7]} 27. Rb1 {[%clk 0:00:54.8]}
27... a5 {[%clk 0:01:02.4]} 28. Qd5 {[%clk 0:00:50.5]} 28... Kc8 {[%clk
0:00:54.9]} 29. Rfc1 {[%clk 0:00:49.7]} 29... Rf3 {[%clk 0:00:34.7]} 1-0